fUSD/lending_fUSD_20240423
["ID","MTS","AMOUNT","RATE_DAILY","PERIOD"]
[323244301,1713839443511,-506.67969412,0.00012795,2]
[323244303,1713839443519,-500.0,0.00012795,2]
[323244305,1713839443528,-500.0,0.00012795,2]
[323244307,1713839443537,-500.0,0.00012795,2]
[323244309,1713839443546,-500.0,0.00012795,2]
[323244311,1713839443554,-507.55005232,0.00012795,2]
[323244313,1713839443563,-500.0,0.00012795,2]
[323244315,1713839443572,-503.74312153,0.00012795,2]
[323244317,1713839443581,-500.0,0.00012795,2]
[323244319,1713839443591,-500.0,0.00012795,2]
[323244321,1713839443600,-500.0,0.00012795,2]
[323244323,1713839443609,-500.0,0.00012795,2]
[323244325,1713839443618,-500.0,0.00012795,2]
[323244327,1713839443627,-500.0,0.00012795,2]
[323244329,1713839443636,-500.0,0.00012795,2]
[323244331,1713839443649,-500.0,0.00012795,2]
[323244333,1713839443658,-512.56312374,0.00012795,2]
[323244335,1713839443667,-500.0,0.00012795,2]
[323244337,1713839443677,-500.0,0.00012795,2]
[323244339,1713839443686,-510.72997811,0.00012795,2]
[323244341,1713839443695,-500.0,0.00012795,2]
[323244343,1713839443704,-500.0,0.00012795,2]
[323244345,1713839443713,-500.0,0.00012795,2]
[323244347,1713839443724,-500.0,0.00012795,2]
[323244349,1713839443733,-503.77069297,0.00012795,2]
[323244351,1713839443743,-506.47,0.00012795,2]
[323244353,1713839443752,-500.0,0.00012795,2]
[323244354,1713839443761,-500.0,0.00012795,2]
[323244356,1713839443769,-983.08,0.00012795,2]
[323244358,1713839443779,-500.0,0.00012795,2]
[323244360,1713839443788,-1542.1,0.00012795,2]
[323244362,1713839443797,-500.0,0.00012795,2]
[323244364,1713839443807,-503.53284105,0.00012795,2]
[323244366,1713839443816,-500.0,0.00012795,2]
[323244368,1713839443826,-500.0,0.00012795,2]
[323244370,1713839443835,-625.45691633,0.00012795,2]
[323244372,1713839443845,-505.11073612,0.00012795,2]
[323244374,1713839443854,-809.98,0.00012795,2]
[323244376,1713839443863,-500.0,0.00012795,2]
[323244378,1713839443872,-506.50675491,0.00012795,2]
[323244380,1713839443882,-500.0,0.00012795,2]
[323244383,1713839443891,-467.81844368,0.00012795,2]
[323244385,1713839443900,-500.0,0.00012795,2]
[323244387,1713839443910,-698.32,0.00012795,2]
[323244389,1713839443919,-500.0,0.00012795,2]
[323244391,1713839443928,-501.54446294,0.00012795,2]
[323244393,1713839443937,-500.0,0.00012795,2]
[323244394,1713839443947,-500.0,0.00012795,2]
[323244396,1713839443956,-500.0,0.00012795,2]
[323244399,1713839443965,-1095.55,0.00012795,2]
[323244401,1713839443974,-260.96214613,0.00012795,2]
[323244403,1713839443983,-500.0,0.00012795,2]
[323244405,1713839443993,-508.86181484,0.00012795,2]
[323244407,1713839444002,-500.0,0.00012795,2]
[323244409,1713839444011,-1007.63,0.00012795,2]
[323244410,1713839444020,-1863.18,0.00012795,2]
[323244413,1713839444030,-932.87,0.00012795,2]
[323244415,1713839444039,-500.0,0.00012795,2]
[323244417,1713839444048,-592.51190779,0.00012795,2]
[323244419,1713839444058,-500.0,0.00012795,2]
[323244421,1713839444067,-769.61,0.00012795,2]
[323244423,1713839444077,-500.0,0.00012795,2]
[323244425,1713839444086,-882.79,0.00012795,2]
[323244427,1713839444096,-500.0,0.00012795,2]
[323244429,1713839444106,-500.0,0.00012795,2]
[323244431,1713839444115,-566.49306837,0.00012795,2]
[323244433,1713839444124,-501.22761208,0.00012795,2]
[323244435,1713839444133,-500.0,0.00012795,2]
[323244437,1713839444141,-502.08791264,0.00012795,2]
[323244439,1713839444150,-500.0,0.00012795,2]
[323244441,1713839444160,-500.0,0.00012795,2]
[323244443,1713839444168,-500.59627512,0.00012795,2]
[323244444,1713839444177,-794.72,0.00012795,2]
[323244447,1713839444186,-500.0,0.00012795,2]
[323244449,1713839444196,-500.0,0.00012795,2]
[323244450,1713839444205,-508.87971508,0.00012795,2]
[323244453,1713839444215,-500.0,0.00012795,2]
[323244454,1713839444224,-500.0,0.00012795,2]
[323244456,1713839444233,-1554.3,0.00012795,2]
[323244458,1713839444242,-500.0,0.00012795,2]
[323244460,1713839444251,-500.0,0.00012795,2]
[323244462,1713839444262,-500.0,0.00012795,2]
[323244464,1713839444271,-580.02,0.00012795,2]
[323244473,1713839444346,-500.0,0.00012795,2]
[323244475,1713839444355,-500.0,0.00012795,2]
[323244477,1713839444364,-500.0,0.00012795,2]
[323244479,1713839444373,-500.89353673,0.00012795,2]
[323244482,1713839444385,-502.32521056,0.00012795,2]
[323244483,1713839444394,-500.0,0.00012795,2]
[323244485,1713839444403,-500.0,0.00012795,2]
[323244487,1713839444412,-1995.37,0.00012795,2]
[323244489,1713839444423,-500.0,0.00012795,2]
[323244491,1713839444432,-500.0,0.00012795,2]
[323244493,1713839444441,-500.0,0.00012795,2]
[323244495,1713839444450,-1162.5,0.00012795,2]
[323244497,1713839444459,-500.0,0.00012795,2]
[323244499,1713839444468,-500.0,0.00012795,2]
[323244502,1713839444479,-500.0,0.00012795,2]
[323244504,1713839444488,-500.0,0.00012795,2]
[323244506,1713839444497,-693.9,0.00012795,2]
[323244508,1713839444507,-500.0,0.00012795,2]
[323244510,1713839444517,-656.71,0.00012795,2]
[323244512,1713839444526,-500.0,0.00012795,2]
[323244513,1713839444535,-500.0,0.00012795,2]
[323244516,1713839444546,-500.0,0.00012795,2]
[323244517,1713839444555,-501.31965667,0.00012795,2]
[323244519,1713839444564,-500.0,0.00012795,2]
[323244521,1713839444573,-500.0,0.00012795,2]
[323244523,1713839444582,-500.0,0.00012795,2]
[323244524,1713839444591,-500.0,0.00012795,2]
[323244525,1713839444600,-500.0,0.00012795,2]
[323244526,1713839444609,-500.0,0.00012795,2]
[323244527,1713839444618,-500.0,0.00012795,2]
[323244528,1713839444627,-329.94745963,0.00012795,2]
[323244529,1713839444636,-500.0,0.00012795,2]
[323244530,1713839444649,-500.0,0.00012795,2]
[323244531,1713839444658,-500.0,0.00012795,2]
[323244532,1713839444667,-500.0,0.00012795,2]
[323244534,1713839444676,-500.0,0.00012795,2]
[323244536,1713839444686,-503.04229702,0.00012795,2]
[323244538,1713839444695,-594.73086375,0.00012795,2]
[323244540,1713839444704,-503.60266833,0.00012795,2]
[323244542,1713839444713,-500.0,0.00012795,2]
[323244544,1713839444723,-210.33279479,0.00012795,2]
[323244546,1713839444732,-500.0,0.00012795,2]
[323244548,1713839444741,-500.0,0.00012795,2]
[323244550,1713839444750,-500.0,0.00012795,2]
[323244552,1713839444759,-627.09437738,0.00012795,2]
[323244554,1713839444769,-500.24864087,0.00012795,2]
[323244556,1713839444778,-500.0,0.00012795,2]
[323244558,1713839444787,-500.0,0.00012795,2]
[323244560,1713839444796,-500.0,0.00012795,2]
[323244562,1713839444805,-503.15209367,0.00012795,2]
[323244564,1713839444813,-534.27411787,0.00012795,2]
[323244566,1713839444823,-643.93,0.00012795,2]
[323244568,1713839444832,-559.92045291,0.00012795,2]
[323244570,1713839444840,-503.937246,0.00012795,2]
[323244572,1713839444849,-521.39502716,0.00012795,2]
[323244574,1713839444858,-543.34229863,0.00012795,2]
[323244576,1713839444867,-500.0,0.00012795,2]
[323244578,1713839444876,-571.78060307,0.00012795,2]
[323244580,1713839444885,-500.0,0.00012795,2]
[323244582,1713839444894,-500.0,0.00012795,2]
[323244584,1713839444902,-500.0,0.00012795,2]
[323244586,1713839444911,-500.0,0.00012795,2]
[323244587,1713839444920,-500.0,0.00012795,2]
[323244590,1713839444929,-500.25705789,0.00012795,2]
[323244591,1713839444938,-500.0,0.00012795,2]
[323244594,1713839444947,-500.0,0.00012795,2]
[323244595,1713839444957,-500.0,0.00012795,2]
[323244597,1713839444965,-504.79828916,0.00012795,2]
[323244599,1713839444974,-500.0,0.00012795,2]
[323244602,1713839444984,-505.14062237,0.00012795,2]
[323244603,1713839444992,-504.78203716,0.00012795,2]
[323244605,1713839445001,-500.0,0.00012795,2]
[323244607,1713839445011,-566.43089963,0.00012795,2]
[323244609,1713839445020,-502.92020042,0.00012795,2]
[323244611,1713839445029,-546.47666551,0.00012795,2]
[323244613,1713839445038,-500.0,0.00012795,2]
[323244615,1713839445047,-510.61963911,0.00012795,2]
[323244617,1713839445056,-500.0,0.00012795,2]
[323244619,1713839445065,-500.0,0.00012795,2]
[323244622,1713839445075,-500.0,0.00012795,2]
[323244624,1713839445084,-500.0,0.00012795,2]
[323244625,1713839445093,-501.67477632,0.00012795,2]
[323244627,1713839445103,-500.0,0.00012795,2]
[323244630,1713839445113,-946.12,0.00012795,2]
[323244631,1713839445122,-605.44,0.00012795,2]
[323244634,1713839445131,-504.86506253,0.00012795,2]
[323244636,1713839445140,-500.0,0.00012795,2]
[323244638,1713839445149,-500.0,0.00012795,2]
[323244640,1713839445158,-601.96530128,0.00012795,2]
[323244642,1713839445167,-500.0,0.00012795,2]
[323244643,1713839445176,-505.29198428,0.00012795,2]
[323244645,1713839445186,-500.0,0.00012795,2]
[323244647,1713839445195,-632.88,0.00012795,2]
[323244649,1713839445204,-537.17927157,0.00012795,2]
[323244651,1713839445213,-506.01837718,0.00012795,2]
[323244653,1713839445222,-524.9876087,0.00012795,2]
[323244656,1713839445232,-306.2320016,0.00012795,2]
[323244657,1713839445241,-501.97452066,0.00012795,2]
[323244660,1713839445250,-500.0,0.00012795,2]
[323244661,1713839445260,-500.0,0.00012795,2]
[323244664,1713839445269,-580.07,0.00012795,2]
[323244666,1713839445279,-506.76397668,0.00012795,2]
[323244667,1713839445288,-501.24478774,0.00012795,2]
[323244670,1713839445297,-523.54178647,0.00012795,2]
[323244671,1713839445306,-950.97,0.00012795,2]
[323244673,1713839445315,-500.0,0.00012795,2]
[323244676,1713839445325,-500.0,0.00012795,2]
[323244677,1713839445334,-530.61944397,0.00012795,2]
[323244679,1713839445343,-323.87686339,0.00012795,2]
[323244681,1713839445352,-511.4312231,0.00012795,2]
[323244683,1713839445361,-505.05900578,0.00012795,2]
[323244685,1713839445369,-500.0,0.00012795,2]
[323244687,1713839445378,-500.0,0.00012795,2]
[323244689,1713839445387,-512.86676649,0.00012795,2]
[323244691,1713839445396,-480.737481,0.00012795,2]
[323244693,1713839445405,-500.0,0.00012795,2]
[323244695,1713839445414,-500.0,0.00012795,2]
[323244697,1713839445423,-523.53731835,0.00012795,2]
[323244699,1713839445432,-500.0,0.00012795,2]
[323244702,1713839445442,-500.0,0.00012795,2]
[323244704,1713839445451,-500.0,0.00012795,2]
[323244706,1713839445461,-508.45835177,0.00012795,2]
[323244708,1713839445470,-2783.12,0.00012795,2]
[323244710,1713839445479,-500.0,0.00012795,2]
[323244711,1713839445488,-606.08724526,0.00012795,2]
[323244713,1713839445498,-500.0,0.00012795,2]
[323244716,1713839445509,-505.98859628,0.00012795,2]
[323244718,1713839445518,-502.10911176,0.00012795,2]
[323244719,1713839445528,-500.0,0.00012795,2]
[323244722,1713839445537,-500.0,0.00012795,2]
[323244723,1713839445546,-729.01,0.00012795,2]
[323244725,1713839445555,-535.85767665,0.00012795,2]
[323244727,1713839445564,-1117.08,0.00012795,2]
[323244729,1713839445573,-1114.12,0.00012795,2]
[323244731,1713839445582,-510.41862516,0.00012795,2]
[323244733,1713839445591,-500.0,0.00012795,2]
[323244735,1713839445600,-500.0,0.00012795,2]
[323244737,1713839445610,-507.73279894,0.00012795,2]
[323244740,1713839445619,-504.03227676,0.00012795,2]
[323244741,1713839445628,-502.31991645,0.00012795,2]
[323244743,1713839445637,-500.0,0.00012795,2]
[323244746,1713839445651,-528.69715051,0.00012795,2]
[323244748,1713839445660,-504.27461793,0.00012795,2]
[323244749,1713839445669,-500.0,0.00012795,2]
[323244752,1713839445678,-3617.11,0.00012795,2]
[323244754,1713839445688,-503.45079736,0.00012795,2]
[323244756,1713839445697,-500.0,0.00012795,2]
[323244757,1713839445707,-500.0,0.00012795,2]
[323244759,1713839445716,-646.55500373,0.00012795,2]
[323244761,1713839445726,-500.0,0.00012795,2]
[323244763,1713839445735,-2018.45,0.00012795,2]
[323244765,1713839445744,-500.0,0.00012795,2]
[323244767,1713839445753,-655.65,0.00012795,2]
[323244769,1713839445763,-851.74,0.00012795,2]
[323244771,1713839445773,-506.10956096,0.00012795,2]
[323244773,1713839445782,-500.0,0.00012795,2]
[323244775,1713839445791,-500.0,0.00012795,2]
[323244778,1713839445800,-500.0,0.00012795,2]
[323244779,1713839445809,-500.0,0.00012795,2]
[323244782,1713839445818,-500.0,0.00012795,2]
[323244784,1713839445829,-543.43837304,0.00012795,2]
[323244786,1713839445838,-500.0,0.00012795,2]
[323244788,1713839445847,-3162.57669846,0.00012795,2]
[323244831,1713839446249,-1167.65999999,0.00012795,2]
[323244854,1713839446454,-7910.86330155,0.00012795,2]
[323244856,1713839446464,-636.54188122,0.00012795,2]
[323244858,1713839446473,-1121.36,0.00012795,2]
[323244860,1713839446483,-121.67972987,0.00012795,2]
[323244914,1713839446999,-378.32027013,0.00012795,2]
[323244915,1713839447009,-504.05773448,0.00012795,2]
[323244916,1713839447018,-1439.23,0.00012795,2]
[323244917,1713839447028,-510.33798307,0.00012795,2]
[323244918,1713839447037,-500.31966514,0.00012795,2]
[323244919,1713839447046,-500.0,0.00012795,2]
[323244920,1713839447057,-502.67471164,0.00012795,2]
[323244921,1713839447067,-500.0,0.00012795,2]
[323244923,1713839447077,-500.0,0.00012795,2]
[323244924,1713839447086,-4157.93,0.00012795,2]
[323244925,1713839447095,-500.0,0.00012795,2]
[323244927,1713839447104,-503.48931772,0.00012795,2]
[323244929,1713839447114,-500.0,0.00012795,2]
[323244931,1713839447124,-626.45332825,0.00012795,2]
[323244934,1713839447133,-500.0,0.00012795,2]
[323244936,1713839447143,-514.28293561,0.00012795,2]
[323244938,1713839447154,-505.32881289,0.00012795,2]
[323244940,1713839447163,-502.72597214,0.00012795,2]
[323244942,1713839447172,-1035.98,0.00012795,2]
[323244944,1713839447181,-500.0,0.00012795,2]
[323244946,1713839447191,-551.75539408,0.00012795,2]
[323244948,1713839447200,-680.18,0.00012795,2]
[323244950,1713839447210,-587.97,0.00012795,2]
[323244952,1713839447219,-907.84,0.00012795,2]
[323244954,1713839447229,-500.0,0.00012795,2]
[323244956,1713839447238,-500.0,0.00012795,2]
[323244958,1713839447248,-500.0,0.00012795,2]
[323244960,1713839447258,-500.0,0.00012795,2]
[323244962,1713839447267,-500.0,0.00012795,2]
[323244964,1713839447276,-500.0,0.00012795,2]
[323244966,1713839447286,-500.0,0.00012795,2]
[323244968,1713839447297,-500.0,0.00012795,2]
[323244970,1713839447306,-498.8574938,0.00012795,2]
[323244972,1713839447316,-500.0,0.00012795,2]
[323244974,1713839447325,-500.0,0.00012795,2]
[323244976,1713839447335,-507.00876215,0.00012795,2]
[323244978,1713839447344,-500.0,0.00012795,2]
[323244980,1713839447353,-505.12460149,0.00012795,2]
[323244982,1713839447363,-512.28,0.00012795,2]
[323244984,1713839447373,-500.0,0.00012795,2]
[323244986,1713839447383,-504.69820767,0.00012795,2]
[323244988,1713839447392,-500.0,0.00012795,2]
[323244990,1713839447402,-1046.14,0.00012795,2]
[323244993,1713839447412,-500.0,0.00012795,2]
[323244995,1713839447423,-500.0,0.00012795,2]
[323244997,1713839447434,-682.13,0.00012795,2]
[323244999,1713839447443,-1173.15,0.00012795,2]
[323245001,1713839447452,-11.73480974,0.00012795,2]
[323245006,1713839447488,-488.26519026,0.00012795,2]
[323245008,1713839447524,-145.6428099,0.00012795,2]
[323245010,1713839447537,-327.62430594,0.00012795,2]
[323245014,1713839447564,-742.22288416,0.00012795,2]
[323245016,1713839447574,-500.0,0.00012795,2]
[323245018,1713839447585,-207.51750269,0.00012795,2]
[323245041,1713839447595,-500.0,0.00012795,2]
[323245043,1713839447824,-561.03,0.00012795,2]
[323245045,1713839447832,-500.0,0.00012795,2]
[323245047,1713839447842,-500.0,0.00012795,2]
[323245049,1713839447851,-500.0,0.00012795,2]
[323245051,1713839447862,-4708.43,0.00012795,2]
[323245053,1713839447871,-500.0,0.00012795,2]
[323245055,1713839447881,-500.0,0.00012795,2]
[323245057,1713839447890,-500.82883412,0.00012795,2]
[323245059,1713839447901,-968.99,0.00012795,2]
[323245061,1713839447910,-500.0,0.00012795,2]
[323245063,1713839447919,-1032.39,0.00012795,2]
[323245065,1713839447928,-500.80970659,0.00012795,2]
[323245067,1713839447937,-505.46484413,0.00012795,2]
[323245069,1713839447946,-501.26724807,0.00012795,2]
[323245071,1713839447956,-500.0,0.00012795,2]
[323245073,1713839447966,-1468.1,0.00012795,2]
[323245075,1713839447977,-500.87506357,0.00012795,2]
[323245077,1713839447986,-500.0,0.00012795,2]
[323245079,1713839447995,-505.0969842,0.00012795,2]
[323245081,1713839448006,-500.0,0.00012795,2]
[323245083,1713839448016,-500.0,0.00012795,2]
[323245084,1713839448026,-500.0,0.00012795,2]
[323245086,1713839448036,-501.99932601,0.00012795,2]
[323245088,1713839448046,-500.0,0.00012795,2]
[323245091,1713839448055,-505.73601912,0.00012795,2]
[323245093,1713839448065,-1481.09,0.00012795,2]
[323245095,1713839448075,-395.11242156,0.00012795,2]
[323245097,1713839448085,-500.0,0.00012795,2]
[323245099,1713839448095,-500.0,0.00012795,2]
[323245101,1713839448105,-500.0,0.00012795,2]
[323245103,1713839448114,-500.0,0.00012795,2]
[323245104,1713839448124,-527.18,0.00012795,2]
[323245106,1713839448134,-500.0,0.00012795,2]
[323245108,1713839448145,-500.0,0.00012795,2]
[323245111,1713839448155,-500.0,0.00012795,2]
[323245113,1713839448164,-500.0,0.00012795,2]
[323245115,1713839448174,-506.20994615,0.00012795,2]
[323245117,1713839448184,-507.14398588,0.00012796,2]
[323245119,1713839448195,-502.82818324,0.00012796,2]
[323245121,1713839448205,-500.0,0.00012796,2]
[323245123,1713839448215,-554.4665088,0.00012796,2]
[323245125,1713839448224,-500.0,0.00012796,2]
[323245127,1713839448233,-500.0,0.00012796,2]
[323245129,1713839448243,-500.0,0.00012796,2]
[323245131,1713839448253,-4285.32,0.00012796,2]
[323245133,1713839448264,-544.73671839,0.00012796,2]
[323245135,1713839448273,-500.0,0.00012796,2]
[323245137,1713839448283,-500.0,0.00012796,2]
[323245139,1713839448293,-500.0,0.00012796,2]
[323245141,1713839448303,-2553.62,0.00012796,2]
[323245143,1713839448313,-534.09277287,0.00012796,2]
[323245145,1713839448323,-488.17898477,0.00012796,2]
[323245147,1713839448332,-500.0,0.00012796,2]
[323245149,1713839448341,-500.0,0.00012796,2]
[323245151,1713839448351,-538.25302946,0.00012797,2]
[323245153,1713839448360,-501.74192241,0.00012797,2]
[323245155,1713839448370,-509.84270498,0.00012797,2]
[323245157,1713839448379,-500.0,0.00012797,2]
[323245159,1713839448388,-279.60589658,0.00012797,2]
[323245161,1713839448400,-241.30496041,0.00012797,2]
[323245163,1713839448409,-445.31437047,0.00012797,2]
[323245166,1713839448419,-459.23425146,0.00012797,2]
[323245168,1713839448428,-500.0,0.00012797,2]
[323245170,1713839448438,-500.0,0.00012797,2]
[323245172,1713839448447,-501.72503828,0.00012797,2]
[323245174,1713839448457,-500.0,0.00012797,2]
[323245176,1713839448466,-500.0,0.00012797,2]
[323245178,1713839448475,-501.2558653,0.00012797,2]
[323245180,1713839448485,-500.6593565,0.00012797,2]
[323245182,1713839448495,-501.61931737,0.00012797,2]
[323245184,1713839448505,-584.83058979,0.00012797,2]
[323245186,1713839448516,-390.43634516,0.00012797,2]
[323245188,1713839448525,-500.66749852,0.00012797,2]
[323245190,1713839448535,-501.96914365,0.00012797,2]
[323245192,1713839448546,-501.13666304,0.00012797,2]
[323245194,1713839448555,-500.66585014,0.00012797,2]
[323245196,1713839448565,-500.0,0.00012797,2]
[323245198,1713839448574,-499.36842861,0.00012797,2]
[323245200,1713839448584,-200.0,0.00012797,2]
[323245202,1713839448593,-500.0,0.00012797,2]
[323245204,1713839448602,-500.69621716,0.00012797,2]
[323245206,1713839448611,-603.1612689,0.00012797,2]
[323245208,1713839448621,-500.0,0.00012797,2]
[323245211,1713839448630,-500.0,0.00012797,2]
[323245212,1713839448640,-500.0,0.00012797,2]
[323245215,1713839448652,-501.38242923,0.00012797,2]
[323245217,1713839448661,-500.0,0.00012797,2]
[323245219,1713839448671,-501.21177902,0.00012797,2]
[323245221,1713839448680,-605.74003642,0.00012797,2]
[323245223,1713839448690,-545.16,0.00012797,2]
[323245225,1713839448699,-503.46149858,0.00012797,2]
[323245227,1713839448708,-500.0,0.00012797,2]
[323245229,1713839448718,-500.0,0.00012797,2]
[323245231,1713839448727,-500.63345415,0.00012797,2]
[323245233,1713839448736,-504.33966912,0.00012797,2]
[323245235,1713839448745,-1272.4,0.00012797,2]
[323245237,1713839448754,-500.33652904,0.00012797,2]
[323245239,1713839448765,-185.40686061,0.00012797,2]
[323245241,1713839448774,-500.51250367,0.00012797,2]
[323245243,1713839448783,-500.0,0.00012797,2]
[323245245,1713839448792,-500.0,0.00012797,2]
[323245247,1713839448801,-500.0,0.00012797,2]
[323245249,1713839448810,-500.0,0.00012797,2]
[323245251,1713839448819,-553.08944755,0.00012797,2]
[323245253,1713839448828,-500.0,0.00012797,2]
[323245255,1713839448837,-500.0,0.00012797,2]
[323245257,1713839448847,-500.0,0.00012797,2]
[323245259,1713839448857,-332.58431573,0.00012797,2]
[323245261,1713839448866,-500.0,0.00012797,2]
[323245263,1713839448875,-500.0,0.00012797,2]
[323245265,1713839448884,-523.7563997,0.00012797,2]
[323245267,1713839448893,-801.34,0.00012797,2]
[323245269,1713839448902,-500.0,0.00012797,2]
[323245271,1713839448912,-500.0,0.00012797,2]
[323245273,1713839448921,-500.0,0.00012797,2]
[323245275,1713839448930,-581.12562591,0.00012797,2]
[323245277,1713839448939,-500.0,0.00012797,2]
[323245279,1713839448949,-500.0,0.00012797,2]
[323245281,1713839448958,-647.31,0.00012797,2]
[323245283,1713839448968,-500.0,0.00012797,2]
[323245285,1713839448977,-382.46787775,0.00012797,2]
[323245287,1713839448986,-500.0,0.00012797,2]
[323245289,1713839448995,-500.0,0.00012797,2]
[323245291,1713839449004,-152.46164891,0.00012797,2]
[323245293,1713839449015,-500.0,0.00012797,2]
[323245295,1713839449024,-500.0,0.00012797,2]
[323245297,1713839449034,-500.0,0.00012797,2]
[323245299,1713839449043,-501.486297,0.00012797,2]
[323245301,1713839449052,-500.0,0.00012797,2]
[323245303,1713839449061,-503.28420548,0.00012797,2]
[323245305,1713839449070,-505.30949591,0.00012797,2]
[323245307,1713839449079,-305.04917755,0.00012797,2]
[323245309,1713839449089,-501.95956717,0.00012797,2]
[323245312,1713839449099,-502.3243888,0.00012797,2]
[323245314,1713839449108,-222.86373312,0.00012797,2]
[323245316,1713839449119,-500.0,0.00012797,2]
[323245318,1713839449133,-502.75428348,0.00012797,2]
[323245320,1713839449143,-500.0,0.00012797,2]
[323245322,1713839449153,-500.0,0.00012797,2]
[323245324,1713839449162,-500.0,0.00012797,2]
[323245326,1713839449171,-504.71178251,0.00012797,2]
[323245328,1713839449180,-504.13242066,0.00012797,2]
[323245330,1713839449189,-500.0,0.00012797,2]
[323245332,1713839449199,-501.38982337,0.00012797,2]
[323245334,1713839449208,-272.64210276,0.00012797,2]
[323245336,1713839449217,-500.0,0.00012797,2]
[323245338,1713839449226,-501.51284896,0.00012797,2]
[323245340,1713839449235,-559.12,0.00012797,2]
[323245342,1713839449245,-501.26693215,0.00012797,2]
[323245344,1713839449254,-522.37,0.00012797,2]
[323245346,1713839449265,-500.95936736,0.00012797,2]
[323245348,1713839449274,-501.05124479,0.00012797,2]
[323245349,1713839449283,-596.24532299,0.00012797,2]
[323245350,1713839449293,-501.24085734,0.00012797,2]
[323245351,1713839449302,-503.0204023,0.00012797,2]
[323245352,1713839449311,-500.0,0.00012797,2]
[323245353,1713839449321,-503.84235402,0.00012797,2]
[323245354,1713839449330,-508.14718667,0.00012797,2]
[323245355,1713839449340,-500.0,0.00012797,2]
[323245356,1713839449350,-500.0,0.00012797,2]
[323245357,1713839449359,-1046.79,0.00012797,2]
[323245359,1713839449368,-472.01573927,0.00012797,2]
[323245361,1713839449378,-407.1065307,0.00012797,2]
[323245363,1713839449387,-500.0,0.00012797,2]
[323245365,1713839449396,-503.30579727,0.00012797,2]
[323245367,1713839449405,-502.94905455,0.00012797,2]
[323245369,1713839449414,-431.49167114,0.00012797,2]
[323245371,1713839449424,-958.45,0.00012797,2]
[323245373,1713839449433,-1012.04,0.00012797,2]
[323245375,1713839449442,-628.93093873,0.00012797,2]
[323245377,1713839449453,-651.19,0.00012797,2]
[323245379,1713839449462,-941.07,0.00012797,2]
[323245381,1713839449471,-500.0,0.00012797,2]
[323245383,1713839449479,-500.0,0.00012797,2]
[323245385,1713839449488,-302.19791697,0.00012797,2]
[323245387,1713839449497,-500.0,0.00012797,2]
[323245389,1713839449506,-500.0,0.00012797,2]
[323245391,1713839449516,-500.0,0.00012797,2]
[323245393,1713839449525,-500.0,0.00012797,2]
[323245395,1713839449534,-500.0,0.00012797,2]
[323245397,1713839449543,-500.0,0.00012797,2]
[323245399,1713839449551,-500.0,0.00012797,2]
[323245401,1713839449560,-500.0,0.00012797,2]
[323245403,1713839449569,-547.3101719,0.00012797,2]
[323245405,1713839449578,-500.0,0.00012797,2]
[323245407,1713839449587,-500.0,0.00012797,2]
[323245409,1713839449596,-500.0,0.00012797,2]
[323245411,1713839449605,-500.0,0.00012797,2]
[323245413,1713839449615,-552.95,0.00012797,2]
[323245415,1713839449623,-500.0,0.00012797,2]
[323245417,1713839449632,-500.0,0.00012797,2]
[323245419,1713839449644,-500.0,0.00012797,2]
[323245421,1713839449655,-500.0,0.00012797,2]
[323245423,1713839449663,-500.0,0.00012797,2]